fUST/lending_fUST_20240820
["ID","MTS","AMOUNT","RATE_DAILY","PERIOD"]
[335371186,1724164267462,-4700.84,0.00020273,2]
[335371187,1724164267471,-603.72,0.00020273,2]
[335371188,1724164267483,-780.17,0.00020273,2]
[335371189,1724164267493,-1400.0,0.00020286,2]
[335371190,1724164267503,-1400.0,0.00020306,2]
[335371191,1724164267515,-207.6000865,0.00020329,2]
[335371192,1724164267525,-800.0,0.0002034,2]
[335371193,1724164267535,-1400.0,0.00020341,2]
[335371194,1724164267545,-2000.0,0.00020348,2]
[335371195,1724164267555,-800.0,0.00020394,2]
[335371196,1724164267565,-800.0,0.00020397,2]
[335371197,1724164267575,-2000.0,0.00020411,2]
[335371198,1724164267586,-465.02890379,0.00020421,2]
[335371199,1724164267596,-2000.0,0.00020424,2]
[335371200,1724164267606,-500.0,0.00020461,2]
[335371201,1724164267616,-500.0,0.00020463,2]
[335371202,1724164267701,-158.76411183,0.00020464,2]
[335371203,1724164267714,-2000.0,0.00020483,2]
[335371204,1724164267725,-321.60592,0.000205,9]
[335371205,1724164267737,-603.0,0.000205,2]
[335371206,1724164267748,-1000.0,0.000205,2]
[335371207,1724164267759,-500.0,0.00020514,2]
[335371208,1724164267770,-500.0,0.00020519,2]
[335371209,1724164267781,-1400.0,0.00020519,2]
[335371210,1724164267791,-153.0,0.00020521,2]
[335371211,1724164267801,-153.0,0.00020521,2]
[335371212,1724164267811,-153.0,0.00020521,2]
[335371213,1724164267823,-153.0,0.00020521,2]
[335371214,1724164267833,-153.0,0.00020521,2]
[335371215,1724164267846,-695.6,0.00020547,2]
[335371216,1724164267856,-546.63,0.00020547,2]
[335371217,1724164267867,-500.0,0.00020547,2]
[335371218,1724164267877,-151.0,0.00020547,2]
[335371219,1724164267887,-151.0,0.00020547,2]
[335371220,1724164267899,-1411.48,0.00020547,2]
[335371221,1724164267909,-500.0,0.00020547,2]
[335371222,1724164267920,-801.92,0.00020547,2]
[335371223,1724164267930,-500.0,0.00020547,2]
[335371224,1724164267941,-1692.72,0.00020547,2]
[335371225,1724164267953,-1117.96,0.00020547,2]
[335371226,1724164267963,-871.42,0.00020547,2]
[335371227,1724164267974,-267.686174,0.00020547,2]
[335371228,1724164267986,-500.0,0.00020547,2]
[335371229,1724164267996,-500.0,0.00020547,2]
[335371230,1724164268006,-903.72,0.00020547,2]
[335371231,1724164268016,-151.0,0.00020547,2]
[335371232,1724164268027,-164.62635721,0.00020547,2]
[335371233,1724164268037,-1595.9,0.00020547,2]
[335371234,1724164268046,-500.0,0.00020547,2]
[335371235,1724164268056,-1040.91,0.00020547,2]
[335371236,1724164268066,-943.07,0.00020547,2]
[335371237,1724164268076,-500.0,0.00020547,2]
[335371238,1724164268086,-500.0,0.00020547,2]
[335371239,1724164268098,-500.0,0.00020547,2]
[335371240,1724164268108,-2614.19,0.00020547,2]
[335371241,1724164268118,-602.86,0.00020547,2]
[335371242,1724164268128,-500.0,0.00020547,2]
[335371243,1724164268138,-4700.84,0.00020547,2]
[335371244,1724164268148,-603.72,0.00020547,2]
[335371245,1724164268160,-780.17,0.00020547,2]
[335371246,1724164268170,-1857.370227,0.00020548,2]
[335371247,1724164268181,-1400.0,0.00020557,2]
[335371248,1724164268191,-20176.28825676,0.0002056,2]
[335371249,1724164268201,-126499.41497098,0.0002056,2]
[335371250,1724164268210,-154.89311412,0.0002056,2]
[335371251,1724164268220,-154.76012181,0.0002056,2]
[335371252,1724164268229,-4355.81881125,0.0002056,2]
[335371253,1724164268242,-520.8117105,0.0002056,2]
[335371254,1724164268253,-992.09924077,0.0002056,2]
[335371255,1724164268263,-155.104913,0.0002056,2]
[335371256,1724164268273,-151.660139,0.0002056,2]
[335371257,1724164268283,-151.0,0.0002056,2]
[335371258,1724164268293,-151.0,0.0002056,2]
[335371259,1724164268305,-252.771361,0.0002056,2]
[335371260,1724164268317,-7199.964,0.0002056,2]
[335371261,1724164268327,-151.0,0.0002056,2]
[335371262,1724164268338,-7199.964,0.0002056,2]
[335371263,1724164268350,-151.0,0.0002056,2]
[335371264,1724164268363,-151.0,0.0002056,2]
[335371265,1724164268375,-151.0,0.0002056,2]
[335371266,1724164268386,-151.0,0.0002056,2]
[335371267,1724164268397,-800.0,0.00020572,2]
[335371268,1724164268409,-638.6,0.00020585,2]
[335371269,1724164268419,-226.7,0.00020585,2]
[335371270,1724164268430,-2000.0,0.00020594,2]
[335371271,1724164268441,-8942.02399666,0.000206,4]
[335371272,1724164268451,-1400.0,0.00020613,2]
[335371273,1724164268462,-500.0,0.00020629,2]
[335371274,1724164268471,-800.0,0.0002064,2]
[335371275,1724164268480,-800.0,0.0002067,2]
[335371276,1724164268490,-151.0,0.000207,2]
[335371277,1724164268499,-151.0,0.000207,2]
[335371278,1724164268508,-151.0,0.000207,2]
[335371279,1724164268518,-2092.36,0.000207,31]
[335371280,1724164268528,-2092.36,0.000207,31]
[335371281,1724164268540,-2092.36,0.000207,31]
[335371282,1724164268551,-2092.36,0.000207,31]
[335371283,1724164268562,-2092.36,0.000207,31]
[335371284,1724164268573,-2092.36,0.000207,31]
[335371285,1724164268583,-2092.36,0.000207,31]
[335371286,1724164268596,-2092.36,0.000207,31]
[335371287,1724164268605,-2092.36,0.000207,31]
[335371288,1724164268614,-2092.36,0.000207,31]
[335371289,1724164268623,-2092.36,0.000207,31]
[335371290,1724164268633,-2092.36,0.000207,31]
[335371291,1724164268642,-2092.36,0.000207,31]
[335371292,1724164268651,-2092.36,0.000207,31]
[335371293,1724164268660,-2092.36,0.000207,31]
[335371294,1724164268670,-2092.36,0.000207,31]
[335371295,1724164268680,-151.0,0.000207,2]
[335371296,1724164268691,-151.0,0.000207,2]
[335371297,1724164268704,-750.0,0.00020707,2]
[335371298,1724164268714,-2475.92839995,0.0002071,2]
[335371299,1724164268724,-153.0,0.00020712,2]
[335371300,1724164268734,-1400.0,0.00020713,2]
[335371301,1724164268745,-207.6000865,0.0002074,2]
[335371302,1724164268755,-207.6000865,0.0002074,2]
[335371303,1724164268767,-174.8339225,0.0002074,2]
[335371304,1724164268778,-182.5,0.000208,2]
[335371305,1724164268788,-1400.0,0.00020803,2]
[335371306,1724164268800,-863.1714911,0.00020808,2]
[335371307,1724164268811,-695.6,0.00020821,2]
[335371308,1724164268822,-546.63,0.00020821,2]
[335371309,1724164268832,-500.0,0.00020821,2]
[335371310,1724164268847,-1411.48,0.00020821,2]
[335371311,1724164268861,-500.0,0.00020821,2]
[335371312,1724164268870,-801.92,0.00020821,2]
[335371313,1724164268881,-500.0,0.00020821,2]
[335371314,1724164268890,-1692.72,0.00020821,2]
[335371315,1724164268900,-1117.96,0.00020821,2]
[335371316,1724164268910,-871.42,0.00020821,2]
[335371317,1724164268920,-500.0,0.00020821,2]
[335371318,1724164268929,-500.0,0.00020821,2]
[335371319,1724164268938,-903.72,0.00020821,2]
[335371320,1724164268948,-1595.9,0.00020821,2]
[335371321,1724164268957,-280.69003276,0.00020821,2]
[335371322,1724164268968,-1040.91,0.00020821,2]
[335371323,1724164268977,-943.07,0.00020821,2]
[335371324,1724164268987,-500.0,0.00020821,2]
[335371325,1724164268996,-500.0,0.00020821,2]
[335371326,1724164269006,-500.0,0.00020821,2]
[335371327,1724164269016,-2614.19,0.00020821,2]
[335371328,1724164269026,-602.86,0.00020821,2]
[335371329,1724164269035,-500.0,0.00020821,2]
[335371330,1724164269045,-4700.84,0.00020821,2]
[335371331,1724164269054,-603.72,0.00020821,2]
[335371332,1724164269066,-780.17,0.00020821,2]
[335371333,1724164269075,-153.0,0.00020822,2]
[335371334,1724164269084,-153.0,0.00020822,2]
[335371335,1724164269093,-153.0,0.00020822,2]
[335371336,1724164269104,-151.0,0.00020825,2]
[335371337,1724164269114,-500.0,0.00020833,2]
[335371338,1724164269123,-306.0,0.00020849,2]
[335371339,1724164269133,-2000.0,0.00020855,2]
[335371340,1724164269143,-153.0,0.00020904,2]
[335371341,1724164269152,-153.0,0.00020904,2]
[335371342,1724164269162,-153.0,0.00020904,2]
[335371343,1724164269244,-1109.78698035,0.00020935,2]
[335371344,1724164269254,-500.0,0.00020953,2]
[335371345,1724164269264,-2165.80480596,0.00020955,2]
[335371346,1724164269274,-823.16820639,0.00020959,2]
[335371347,1724164269284,-3507.45012855,0.00020973,2]
[335371348,1724164269293,-153.0,0.00020986,2]
[335371349,1724164269302,-153.0,0.00020986,2]
[335371350,1724164269312,-153.0,0.00020986,2]
[335371351,1724164269321,-153.0,0.00020986,2]
[335371352,1724164269331,-153.0,0.00020986,2]
[335371353,1724164269341,-153.0,0.00020986,2]
[335371354,1724164269352,-153.0,0.00020986,2]
[335371355,1724164269363,-683.64438765,0.00020993,2]
[335371356,1724164269372,-673.07858906,0.00020999,2]
[335371357,1724164269382,-379.82,0.00021,2]
[335371358,1724164269391,-500.0,0.00021,2]
[335371359,1724164269400,-1000.0,0.00021,21]
[335371360,1724164269409,-76270.91,0.00021,2]
[335371361,1724164269419,-151.0,0.00021,2]
[335371362,1724164269428,-158.336649,0.00021,2]
[335371363,1724164269437,-158.336649,0.00021,2]
[335371364,1724164269447,-151.0,0.00021,2]
[335371365,1724164269456,-151.0,0.00021,2]
[335371366,1724164269466,-3000.0,0.00021,2]
[335371367,1724164269476,-638.6,0.00021,2]
[335371368,1724164269486,-226.7,0.00021,2]
[335371369,1724164269495,-150.0,0.00021,2]
[335371370,1724164269505,-151.0,0.00021,2]
[335371371,1724164269514,-10000.0,0.00021,5]
[335371372,1724164269524,-1000.0,0.00021,2]
[335371373,1724164269534,-377.8277,0.00021,2]
[335371374,1724164269544,-377.8277,0.00021,2]
[335371375,1724164269553,-3000.0,0.0002101,2]
[335371376,1724164269563,-3000.0,0.0002102,2]
[335371377,1724164269572,-3000.0,0.0002103,2]
[335371378,1724164269581,-3000.0,0.0002104,2]
[335371379,1724164269590,-3000.0,0.0002105,2]
[335371380,1724164269603,-3000.0,0.0002106,2]
[335371381,1724164269612,-3000.0,0.0002107,2]
[335371382,1724164269621,-3000.0,0.0002108,2]
[335371383,1724164269631,-3000.0,0.0002109,2]
[335371384,1724164269640,-695.6,0.00021095,2]
[335371385,1724164269650,-546.63,0.00021095,2]
[335371386,1724164269659,-500.0,0.00021095,2]
[335371387,1724164269669,-1411.48,0.00021095,2]
[335371388,1724164269678,-460.00900199,0.00021095,2]
[335371389,1724164269687,-801.92,0.00021095,2]
[335371390,1724164269696,-500.0,0.00021095,2]
[335371391,1724164269705,-1692.72,0.00021095,2]
[335371392,1724164269714,-1117.96,0.00021095,2]
[335371393,1724164269723,-871.42,0.00021095,2]
[335371394,1724164269733,-500.0,0.00021095,2]
[335371395,1724164269743,-420.30261911,0.00021095,2]
[335371396,1724164269752,-903.72,0.00021095,2]
[335371397,1724164269761,-1595.9,0.00021095,2]
[335371398,1724164269771,-1040.91,0.00021095,2]
[335371399,1724164269780,-943.07,0.00021095,2]
[335371400,1724164269790,-500.0,0.00021095,2]
[335371401,1724164269799,-500.0,0.00021095,2]
[335371402,1724164269809,-500.0,0.00021095,2]
[335371403,1724164269819,-2614.19,0.00021095,2]
[335371404,1724164269829,-602.86,0.00021095,2]
[335371405,1724164269838,-500.0,0.00021095,2]
[335371406,1724164269852,-4700.84,0.00021095,2]
[335371407,1724164269861,-603.72,0.00021095,2]
[335371408,1724164269871,-780.17,0.00021095,2]
[335371409,1724164269881,-153.0,0.00021096,2]
[335371410,1724164269890,-153.0,0.00021096,2]
[335371411,1724164269900,-153.0,0.00021096,2]
[335371412,1724164269910,-5870.59,0.000211,2]
[335371413,1724164269919,-3000.0,0.000211,2]
[335371414,1724164269929,-1415.0,0.00021102,2]
[335371415,1724164269939,-7726.0,0.00021102,2]
[335371416,1724164269949,-3000.0,0.0002111,2]
[335371417,1724164269961,-3000.0,0.0002112,2]
[335371418,1724164269972,-3924.25366839,0.00021125,120]
[335371419,1724164269982,-4600.481882,0.0002113,2]
[335371420,1724164269992,-207.6000865,0.00021151,2]
[335371421,1724164270002,-207.6000865,0.00021151,2]
[335371422,1724164270014,-304.312568,0.00021151,2]
[335371423,1724164270025,-153.0,0.00021151,2]
[335371424,1724164270034,-306.0,0.00021151,2]
[335371425,1724164270045,-684.67026372,0.00021172,2]
[335371426,1724164270055,-695.6,0.00021369,2]
[335371427,1724164270065,-546.63,0.00021369,2]
[335371428,1724164270076,-500.0,0.00021369,2]
[335371429,1724164270087,-1411.48,0.00021369,2]
[335371430,1724164270102,-801.92,0.00021369,2]
[335371431,1724164270113,-500.0,0.00021369,2]
[335371432,1724164270124,-1692.72,0.00021369,2]
[335371433,1724164270135,-1117.96,0.00021369,2]
[335371434,1724164270145,-871.42,0.00021369,2]
[335371435,1724164270155,-500.0,0.00021369,2]
[335371436,1724164270164,-903.72,0.00021369,2]
[335371437,1724164270174,-1595.9,0.00021369,2]
[335371438,1724164270187,-1040.91,0.00021369,2]
[335371439,1724164270197,-943.07,0.00021369,2]
[335371440,1724164270206,-500.0,0.00021369,2]
[335371441,1724164270216,-500.0,0.00021369,2]
[335371442,1724164270226,-500.0,0.00021369,2]
[335371443,1724164270236,-2614.19,0.00021369,2]
[335371444,1724164270249,-602.86,0.00021369,2]
[335371445,1724164270258,-440.02087159,0.00021369,2]
[335371446,1724164270267,-4700.84,0.00021369,2]
[335371447,1724164270277,-603.72,0.00021369,2]
[335371448,1724164270287,-780.17,0.00021369,2]
[335371449,1724164270297,-1000.0,0.0002146,2]
[335371450,1724164270306,-1824.67404438,0.00021539,2]
[335371451,1724164270315,-695.6,0.00021643,2]
[335371452,1724164270324,-546.63,0.00021643,2]
[335371453,1724164270334,-601.2831112,0.00021643,2]
[335371454,1724164270344,-1411.48,0.00021643,2]
[335371455,1724164270354,-801.92,0.00021643,2]
[335371456,1724164270363,-500.0,0.00021643,2]
[335371457,1724164270373,-1692.72,0.00021643,2]
[335371458,1724164270383,-915.30761873,0.00021643,2]
[335371459,1724164270729,-1197.897535,0.00012516,2]
[335371460,1724164270740,-426.99138161,0.00012516,2]
[335371461,1724164270752,-518.13985412,0.00012516,2]
[335371462,1724164270762,-502.79927189,0.00016438,2]
[335371463,1724164270773,-2354.83762479,0.00016712,5]
[335371464,1724164270786,-4439.90954632,0.00016712,5]
[335371465,1724164270796,-500.0,0.00016712,2]
[335371466,1724164270806,-500.0,0.00016986,2]
[335371467,1724164270817,-202.65238127,0.00021643,2]
[335371468,1724164270830,-871.42,0.00021643,2]
[335371469,1724164270841,-500.0,0.00021643,2]
[335371470,1724164270852,-903.72,0.00021643,2]
[335371471,1724164270861,-1595.9,0.00021643,2]
[335371472,1724164270871,-1040.91,0.00021643,2]
[335371473,1724164270880,-943.07,0.00021643,2]
[335371474,1724164270890,-528.71078586,0.00021643,2]
[335371475,1724164270899,-500.0,0.00021643,2]
[335371476,1724164270908,-500.0,0.00021643,2]
[335371477,1724164270920,-2614.19,0.00021643,2]
[335371478,1724164270930,-602.86,0.00021643,2]
[335371479,1724164270940,-4700.84,0.00021643,2]
[335371480,1724164270951,-603.72,0.00021643,2]
[335371481,1724164270962,-780.17,0.00021643,2]
[335371482,1724164270972,-306.0,0.00021644,2]
[335371483,1724164270982,-153.0,0.00021753,2]
[335371484,1724164270991,-153.0,0.00021753,2]
[335371485,1724164271002,-153.0,0.00021753,2]
[335371486,1724164271014,-10003.90066576,0.00021917,2]
[335371487,1724164271026,-10003.90066576,0.00021917,2]
[335371488,1724164271035,-695.6,0.00021917,2]
[335371489,1724164271047,-546.63,0.00021917,2]
[335371490,1724164271059,-1411.48,0.00021917,2]
[335371491,1724164271070,-1000.0,0.00021917,5]
[335371492,1724164271081,-1000.0,0.00021917,5]
[335371493,1724164271094,-1000.0,0.00021917,5]
[335371494,1724164271105,-1000.0,0.00021917,5]
[335371495,1724164271115,-786.5064596,0.00021917,5]
[335371496,1724164271127,-801.92,0.00021917,2]
[335371497,1724164271138,-151.0,0.00021917,2]
[335371498,1724164271148,-151.0,0.00021917,2]
[335371499,1724164271159,-252.771361,0.00021917,2]
[335371500,1724164271169,-547.5445542,0.00021917,2]
[335371501,1724164271180,-7199.964,0.00021917,2]
[335371502,1724164271190,-151.355207,0.00021917,2]
[335371503,1724164271200,-1692.72,0.00021917,2]
[335371504,1724164271211,-7199.964,0.00021917,2]
[335371505,1724164271221,-151.0,0.00021917,2]
[335371506,1724164271230,-151.0,0.00021917,2]
[335371507,1724164271242,-151.0,0.00021917,2]
[335371508,1724164271255,-1117.96,0.00021917,2]
[335371509,1724164271265,-871.42,0.00021917,2]
[335371510,1724164271275,-432.35365398,0.00021917,2]
[335371511,1724164271285,-903.72,0.00021917,2]
[335371512,1724164271294,-1595.9,0.00021917,2]
[335371513,1724164271304,-1040.91,0.00021917,2]
[335371514,1724164271313,-943.07,0.00021917,2]
[335371515,1724164271323,-500.0,0.00021917,2]
[335371516,1724164271332,-500.0,0.00021917,2]
[335371517,1724164271341,-2614.19,0.00021917,2]
[335371518,1724164271351,-602.86,0.00021917,2]
[335371519,1724164271361,-151.0,0.00021917,2]
[335371520,1724164271371,-4700.84,0.00021917,2]
[335371521,1724164271381,-603.72,0.00021917,2]
[335371522,1724164271391,-780.17,0.00021917,2]
[335371523,1724164271400,-153.0,0.00021918,2]
[335371524,1724164271409,-153.0,0.00021918,2]
[335371525,1724164271419,-153.0,0.00021918,2]
[335371526,1724164271428,-153.0,0.00021918,2]
[335371527,1724164271437,-306.0,0.00021918,2]
[335371528,1724164271447,-151.0,0.00021918,2]
[335371529,1724164271457,-151.0,0.00021918,2]
[335371530,1724164271466,-151.0,0.00021918,2]
[335371531,1724164271476,-151.0,0.00021918,2]
[335371532,1724164271485,-151.0,0.00021918,2]
[335371533,1724164271495,-5900.0,0.00021918,30]
[335371534,1724164271504,-4362.46,0.00022,2]
[335371535,1724164271514,-501.0,0.00022,2]
[335371536,1724164271523,-828.97554189,0.00022,30]
[335371537,1724164271533,-154.69833824,0.00022,2]
[335371538,1724164271542,-308.68538114,0.00022,2]
[335371539,1724164271552,-302.54622906,0.00022,2]
[335371540,1724164271561,-150.0,0.00022,2]
[335371541,1724164271571,-302.54622906,0.00022,2]
[335371542,1724164271582,-151.0,0.00022,7]
[335371543,1724164271592,-151.0,0.00022,7]
[335371544,1724164271606,-151.0,0.00022187,7]
[335371545,1724164271616,-151.0,0.00022187,7]
[335371546,1724164271626,-151.0,0.00022187,7]
[335371547,1724164271635,-1694.655907,0.00022191,2]
[335371548,1724164271645,-695.6,0.00022191,2]
[335371549,1724164271654,-546.63,0.00022191,2]
[335371550,1724164271663,-1411.48,0.00022191,2]
[335371551,1724164271672,-801.92,0.00022191,2]
[335371552,1724164271682,-1692.72,0.00022191,2]
[335371553,1724164271692,-1117.96,0.00022191,2]
[335371554,1724164271701,-871.42,0.00022191,2]
[335371555,1724164271710,-903.72,0.00022191,2]
[335371556,1724164271720,-1595.9,0.00022191,2]
[335371557,1724164271729,-1040.91,0.00022191,2]
[335371558,1724164271739,-943.07,0.00022191,2]
[335371559,1724164271749,-321.24852019,0.00022191,2]
[335371560,1724164271760,-151.8217587,0.00022191,2]
[335371561,1724164271772,-2614.19,0.00022191,2]
[335371562,1724164271855,-602.86,0.00022191,2]
[335371563,1724164271865,-4700.84,0.00022191,2]
[335371564,1724164271876,-603.72,0.00022191,2]
[335371565,1724164271885,-780.17,0.00022191,2]
[335371566,1724164271896,-2092.36,0.000222,31]
[335371567,1724164271907,-2092.36,0.000222,31]
[335371568,1724164271917,-2092.36,0.000222,31]
[335371569,1724164271927,-2092.36,0.000222,31]
[335371570,1724164271938,-2092.36,0.000222,31]
[335371571,1724164271950,-2092.36,0.000222,31]
[335371572,1724164271960,-2092.36,0.000222,31]
[335371573,1724164271971,-2092.36,0.000222,31]
[335371574,1724164271982,-2092.36,0.000222,31]
[335371575,1724164271993,-2092.36,0.000222,31]
[335371576,1724164272005,-2092.36,0.000222,31]
[335371577,1724164272016,-2092.36,0.000222,31]
[335371578,1724164272026,-2092.36,0.000222,31]
[335371579,1724164272036,-2092.36,0.000222,31]
[335371580,1724164272048,-2092.36,0.000222,31]
[335371581,1724164272059,-2092.36,0.000222,31]
[335371582,1724164272070,-2092.36,0.000222,31]
[335371583,1724164272081,-2092.36,0.000222,31]
[335371584,1724164272091,-2092.36,0.000222,31]
[335371585,1724164272104,-2092.36,0.000222,31]
[335371586,1724164272115,-2092.36,0.000222,31]
[335371587,1724164272126,-2092.36,0.000222,31]
[335371588,1724164272137,-2092.36,0.000222,31]
[335371589,1724164272147,-2092.36,0.000222,31]
[335371590,1724164272158,-1830.04600683,0.00022219,2]
[335371591,1724164272168,-302.54622906,0.0002222,2]
[335371592,1724164272179,-302.54622906,0.0002222,2]
[335371593,1724164272190,-158.88942604,0.0002244,2]
[335371594,1724164272201,-302.54622906,0.0002244,2]
[335371595,1724164272212,-695.6,0.00022465,2]
[335371596,1724164272222,-546.63,0.00022465,2]
[335371597,1724164272233,-1411.48,0.00022465,2]
[335371598,1724164272244,-801.92,0.00022465,2]
[335371599,1724164272255,-1692.72,0.00022465,2]
[335371600,1724164272266,-1117.96,0.00022465,2]
[335371601,1724164272276,-871.42,0.00022465,2]
[335371602,1724164272286,-903.72,0.00022465,2]
[335371603,1724164272295,-1595.9,0.00022465,2]
[335371604,1724164272306,-1040.91,0.00022465,2]
[335371605,1724164272316,-943.07,0.00022465,2]
[335371606,1724164272327,-2614.19,0.00022465,2]
[335371607,1724164272338,-602.86,0.00022465,2]
[335371608,1724164272351,-4700.84,0.00022465,2]
[335371609,1724164272362,-603.72,0.00022465,2]
[335371610,1724164272372,-780.17,0.00022465,2]
[335371611,1724164272381,-302.54622906,0.0002266,2]
[335371612,1724164272391,-695.6686826,0.00022739,2]
[335371613,1724164272402,-546.64715351,0.00022739,2]
[335371614,1724164272412,-1411.68559456,0.00022739,2]
[335371615,1724164272422,-801.96719435,0.00022739,2]
[335371616,1724164272432,-1692.82510166,0.00022739,2]
[335371617,1724164272442,-1118.12423061,0.00022739,2]
[335371618,1724164272452,-871.52935724,0.00022739,2]
[335371619,1724164272471,-903.91234634,0.00022739,2]
[335371620,1724164272487,-1596.03662511,0.00022739,2]
[335371621,1724164272508,-1040.92911686,0.00022739,2]
[335371622,1724164272529,-943.23608207,0.00022739,2]
[335371623,1724164272549,-2614.22872539,0.00022739,2]
[335371624,1724164272569,-603.08468339,0.00022739,2]
[335371625,1724164272585,-4700.89462236,0.00022739,2]
[335371626,1724164272607,-603.86754844,0.00022739,2]
[335371627,1724164272625,-780.39275389,0.00022739,2]
[335371628,1724164272647,-302.54622906,0.0002288,2]
[335371629,1724164272661,-4362.46,0.00023,2]
[335371630,1724164272679,-4362.46,0.00023,2]
[335371631,1724164272696,-2074.0,0.00023,30]
[335371632,1724164272713,-76270.91,0.00023,14]
[335371633,1724164272727,-478.77,0.00023,2]
[335371634,1724164272744,-478.771,0.00023,2]
[335371635,1724164272759,-478.771,0.00023,2]
[335371636,1724164272778,-478.771,0.00023,2]
[335371637,1724164272794,-478.771,0.00023,2]
[335371638,1724164272813,-151.0,0.00023,7]
[335371639,1724164272827,-158.336649,0.00023,2]
[335371640,1724164272846,-158.336649,0.00023,2]
[335371641,1724164272857,-151.0,0.00023,7]
[335371642,1724164272869,-200.0,0.00023,2]
[335371643,1724164272879,-151.0,0.00023,7]
[335371644,1724164272889,-151.0,0.00023,7]
[335371645,1724164272900,-199.0,0.00023,2]
[335371646,1724164272911,-166.67507087,0.00023099,2]
[335371647,1724164272921,-453.8193436,0.000231,4]
[335371648,1724164272933,-1111.07542891,0.00023116,2]
[335371649,1724164272946,-271.56079623,0.00023172,2]
[335371650,1724164272957,-271.56079623,0.00023172,2]
[335371651,1724164272968,-154.76012181,0.00023172,2]
[335371652,1724164272979,-154.76012181,0.00023174,2]
[335371653,1724164272991,-417.95797788,0.00023199,2]
[335371654,1724164273001,-435.0,0.00023203,2]
[335371655,1724164273014,-639.550841,0.00023242,2]
[335371656,1724164273027,-453.8193436,0.0002332,4]
[335371657,1724164273039,-379.82,0.000234,7]
[335371658,1724164273049,-220.52,0.000235,7]
[335371659,1724164273060,-1008.39909403,0.000235,2]
[335371660,1724164273071,-5870.59,0.000235,14]
[335371661,1724164273082,-453.8193436,0.0002354,4]
[335371662,1724164273093,-2092.36,0.000237,31]
[335371663,1724164273106,-2092.36,0.000237,31]
[335371664,1724164273117,-2092.36,0.000237,31]
[335371665,1724164273127,-2092.36,0.000237,31]
[335371666,1724164273137,-2092.36,0.000237,31]
[335371667,1724164273147,-2092.36,0.000237,31]
[335371668,1724164273157,-2092.36,0.000237,31]
[335371669,1724164273167,-2092.36,0.000237,31]
[335371670,1724164273177,-2092.36,0.000237,31]
[335371671,1724164273188,-2092.36,0.000237,31]
[335371672,1724164273199,-2092.36,0.000237,31]
[335371673,1724164273428,-2092.36,0.000237,31]
[335371674,1724164273443,-2092.36,0.000237,31]
[335371675,1724164273454,-2092.36,0.000237,31]
[335371676,1724164273464,-2092.36,0.000237,31]
[335371677,1724164273473,-2092.36,0.000237,31]
[335371678,1724164273482,-2092.36,0.000237,31]
[335371679,1724164273492,-2092.36,0.000237,31]
[335371680,1724164273501,-2092.36,0.000237,31]
[335371681,1724164273511,-2092.36,0.000237,31]
[335371682,1724164273520,-2092.36,0.000237,31]
[335371683,1724164273529,-2092.36,0.000237,31]
[335371684,1724164273538,-2092.36,0.000237,31]
[335371685,1724164273548,-2092.36,0.000237,31]